bitfinex-derivatives/quotes_SOLF0:USTF0_20250903
["timestamp","ask_amount","ask_price","bid_price","bid_amount"]
[1756905875648,2.20518239,210.64,210.54,7.57]
[1756905875845,2.20518239,210.62,210.54,7.57]
[1756905876045,2.20518239,210.61,210.54,7.57]
[1756905876346,9.98518239,210.63,210.56,7.57]
[1756905883651,15.25330801,210.63,210.53,2.20518239]
[1756905883951,15.25330801,210.63,210.54,7.89]
[1756905884153,5.26812562,210.62,210.54,7.89]
[1756905884548,9.53518239,210.61,210.54,7.89]
[1756905884853,7.33,210.58,210.54,7.89]
[1756905886654,7.33,210.58,210.52,7.89]
[1756905886855,14.80330801,210.61,210.53,10.09518239]
[1756905887256,12.59812562,210.61,210.53,10.09518239]
[1756905887549,14.80330801,210.61,210.53,10.09518239]
[1756905887946,9.53518239,210.61,210.53,10.09518239]
[1756905888151,5.26812562,210.62,210.55,2.20518239]
[1756905888354,5.26812562,210.63,210.58,7.89]
[1756905888748,5.26812562,210.63,210.57,2.20518239]
[1756905888952,5.26812562,210.63,210.58,7.89]
[1756905889147,5.26812562,210.63,210.57,2.20518239]
[1756905889753,5.26812562,210.63,210.58,2.20518239]
[1756905890359,5.26812562,210.63,210.59,7.89]
[1756905890554,7.33,210.65,210.59,7.89]
[1756905890749,12.59812562,210.65,210.59,7.89]
[1756905890951,5.26812562,210.66,210.61,7.89]
[1756905891156,7.47330801,210.68,210.61,7.89]
[1756905891560,5.26812562,210.68,210.61,7.89]
[1756905891756,7.47330801,210.68,210.61,7.89]
[1756905892658,7.33,210.62,210.51,7.89]
[1756905892857,7.33,210.55,210.51,7.89]
[1756905895066,3.61230329,210.54,210.51,7.89]
[1756905895360,3.61182517,210.53,210.48,7.89]
[1756905895555,2.20518239,210.54,210.48,7.89]
[1756905895754,3.61026605,210.53,210.47,115.26342841]
[1756905895960,2.20518239,210.54,210.47,115.26342841]
[1756905896165,3.61036729,210.53,210.47,107.37342841]
[1756905896365,5.32772225,210.6,210.49,2.20518239]
[1756905896366,2.20518239,210.56,210.49,2.20518239]
[1756905896664,3.61006832,210.55,210.49,2.20518239]
[1756905896966,3.61006832,210.54,210.5,7.89]
[1756905897165,2.20518239,210.56,210.5,7.89]
[1756905897572,7.33,210.58,210.5,7.89]
[1756905897762,2.20518239,210.55,210.48,7.89]
[1756905898163,2.20518239,210.57,210.49,2.20518239]
[1756905898358,7.90640364,210.63,210.47,105.16824602]
[1756905898359,5.32772225,210.64,210.56,2.20518239]
[1756905898560,7.33,210.65,210.61,2.20518239]
[1756905898761,5.32772225,210.68,210.61,10.09518239]
[1756905898962,12.65772225,210.68,210.61,10.09518239]
[1756905899568,2.20518239,210.67,210.59,2.20518239]
[1756905899763,7.53290464,210.67,210.59,2.20518239]
[1756905900356,9.53518239,210.61,210.52,7.89]
[1756905900556,27.66,210.74,210.49,94.90100837]
[1756905900557,2.20518239,210.63,210.56,7.89]
[1756905900757,7.33,210.66,210.57,2.20518239]
[1756905900758,7.53290464,210.65,210.57,2.20518239]
[1756905900961,7.33,210.66,210.59,2.20518239]
[1756905901858,7.33,210.66,210.58,7.89]
[1756905902065,7.33,210.66,210.6,2.20518239]
[1756905903268,5.32772225,210.68,210.62,2.20518239]
[1756905903467,5.32772225,210.69,210.61,7.89]
[1756905904561,12.65772225,210.7,210.61,7.89]
[1756905905170,7.33,210.7,210.61,7.89]
[1756905905971,7.33,210.75,210.66,7.89]
[1756905906470,7.90640364,210.79,210.66,7.89]
[1756905906471,5.32772225,210.77,210.68,3.44215732]
[1756905906662,5.32772225,210.77,210.69,7.89]
[1756905907263,5.32772225,210.77,210.69,11.33215732]
[1756905908469,7.33,210.79,210.7,7.89]
[1756905908470,12.65772225,210.79,210.7,7.89]
[1756905908669,7.33,210.79,210.72,3.44215732]
[1756905909075,7.33,210.79,210.73,7.89]
[1756905910876,7.33,210.79,210.69,11.33215732]
[1756905913086,7.81,210.79,210.69,11.33215732]
[1756905913789,7.81,210.79,210.69,7.89]
[1756905914083,7.81,210.77,210.65,42.60215732]
[1756905914290,7.81,210.77,210.65,10.96215732]
[1756905914589,7.81,210.77,210.65,7.52]
[1756905914779,13.13772225,210.77,210.65,7.52]
[1756905914982,7.81,210.74,210.65,7.52]
[1756905915191,7.81,210.74,210.61,7.52]
[1756905916283,3.44215732,210.72,210.61,7.52]
[1756905916486,7.81,210.71,210.61,7.52]
[1756905919193,5.32772225,210.75,210.63,7.52]
[1756905919393,7.81,210.76,210.66,7.52]
[1756905924396,3.60322934,210.75,210.66,7.52]
[1756905924595,3.60322934,210.74,210.66,7.52]
[1756905924895,3.60322934,210.73,210.66,7.52]
[1756905925096,3.60322934,210.72,210.66,7.52]
[1756905925296,7.81,210.76,210.63,7.52]
[1756905925297,3.60322934,210.71,210.63,7.52]
[1756905925498,3.60322934,210.7,210.63,7.52]
[1756905925698,3.60322934,210.69,210.63,7.52]
[1756905925894,7.81,210.76,210.63,7.52]
[1756905926089,3.60311852,210.75,210.63,7.52]
[1756905926295,3.60311852,210.74,210.63,7.52]
[1756905926496,3.60311852,210.73,210.63,7.52]
[1756905926698,3.60311852,210.72,210.63,7.52]
[1756905926895,3.60311852,210.71,210.63,7.52]
[1756905927095,3.60311852,210.7,210.63,7.52]
[1756905927296,7.81,210.76,210.63,7.52]
[1756905927491,3.60279827,210.75,210.65,3.44215732]
[1756905927698,3.60279827,210.74,210.68,3.44215732]
[1756905927898,3.60279827,210.73,210.65,3.44215732]
[1756905928098,3.60279827,210.72,210.66,7.52]
[1756905928296,3.60279827,210.71,210.65,3.44215732]
[1756905928498,7.81,210.76,210.66,7.52]
[1756905928800,3.60265697,210.75,210.66,7.52]
[1756905929000,3.60265697,210.74,210.66,7.52]
[1756905929200,3.60265697,210.73,210.66,7.52]
[1756905929402,3.60265697,210.72,210.66,7.52]
[1756905929601,3.60265697,210.71,210.63,7.52]
[1756905929901,3.60265697,210.7,210.63,7.52]
[1756905930100,3.60265697,210.69,210.63,7.52]
[1756905930301,7.81,210.74,210.63,7.52]
[1756905930498,7.81,210.72,210.63,7.52]
[1756905930703,3.6039213,210.71,210.63,7.52]
[1756905930902,7.81,210.72,210.63,7.52]
[1756905930903,3.6039213,210.7,210.63,7.52]
[1756905931198,3.6039213,210.69,210.63,7.52]
[1756905931393,3.6039213,210.68,210.63,7.52]
[1756905931599,3.6039213,210.67,210.59,7.52]
[1756905937006,3.6039213,210.66,210.59,7.52]
[1756905937207,7.81,210.72,210.59,7.52]
[1756905937401,3.60693843,210.71,210.59,7.52]
[1756905937701,7.81,210.72,210.59,7.52]
[1756905937702,3.60693843,210.7,210.61,3.44215732]
[1756905937901,3.60693843,210.69,210.62,58.5]
[1756905938100,3.60693843,210.68,210.63,7.52]
[1756905938301,3.6072246,210.67,210.63,7.52]
[1756905938605,7.81,210.72,210.63,7.52]
[1756905939698,8.76987957,210.76,210.64,3.44215732]
[1756905939899,5.32772225,210.78,210.68,7.52]
[1756905940306,13.13772225,210.79,210.68,7.52]
[1756905940704,7.81,210.79,210.68,7.52]
[1756905941400,7.81,210.79,210.69,3.44215732]
[1756905942109,13.13772225,210.79,210.7,7.84]
[1756905944910,7.81,210.79,210.7,7.84]
[1756905947514,7.81,210.79,210.63,7.84]
[1756905947808,7.81,210.79,210.61,3.98100837]
[1756905947809,5.32772225,210.75,210.61,3.44215732]
[1756905948012,12.59772225,210.74,210.62,7.84]
[1756905948614,16.03987957,210.74,210.62,7.84]
[1756905949213,7.27,210.72,210.62,7.84]
[1756905951215,12.59772225,210.72,210.62,7.84]
[1756905952511,7.27,210.7,210.62,7.84]
[1756905954019,7.27,210.7,210.58,3.44215732]
[1756905954020,7.27,210.7,210.59,7.84]
[1756905954620,5.32772225,210.69,210.59,7.84]
[1756905954821,7.27,210.68,210.59,7.84]
[1756905960626,7.27,210.68,210.6,7.84]
[1756905962831,5.32772225,210.71,210.6,7.84]
[1756905963025,5.32772225,210.72,210.63,7.84]
[1756905963227,7.27,210.7,210.59,7.84]
[1756905963532,12.59772225,210.7,210.59,7.84]
[1756905964335,3.44215732,210.69,210.59,7.84]
[1756905964629,7.27,210.68,210.59,7.84]
[1756905965538,2.20372684,210.66,210.59,7.84]
[1756905967234,7.27,210.68,210.52,7.84]
[1756905967235,2.20372684,210.62,210.52,7.84]
[1756905967440,2.20372684,210.62,210.48,319.04]
[1756905967441,2.20372684,210.62,210.55,10.04372684]
[1756905968639,5.32772225,210.67,210.53,118.9]
[1756905968640,2.20372684,210.66,210.59,2.20372684]
[1756905969042,7.27,210.67,210.61,2.20372684]
[1756905972344,15.13144909,210.71,210.63,2.20372684]
[1756905972540,9.80372684,210.71,210.63,2.20372684]
[1756905972742,2.20372684,210.69,210.62,7.85]
[1756905972943,9.80372684,210.69,210.62,7.85]
[1756905977248,9.80372684,210.69,210.62,10.05372684]
[1756905977445,7.6,210.69,210.62,10.05372684]
[1756905978041,7.6,210.73,210.66,2.20372684]
[1756905979349,2.20372684,210.72,210.66,2.20372684]
[1756905979847,2.20372684,210.72,210.65,7.85]
[1756905980450,7.6,210.71,210.65,7.85]
[1756905981749,2.20372684,210.7,210.62,2.20372684]
[1756905981947,7.6,210.69,210.62,2.20372684]
[1756905983349,7.6,210.69,210.63,7.85]
[1756905986648,9.80372684,210.69,210.6,10.05372684]
[1756905986947,2.20372684,210.67,210.6,7.85]
[1756905987146,7.6,210.66,210.6,7.85]
[1756905990347,5.32772225,210.69,210.62,7.85]
[1756905990348,2.20372684,210.69,210.62,7.85]
[1756905990953,7.6,210.66,210.59,10.05372684]
[1756905993354,2.20372684,210.65,210.59,7.85]
[1756905996745,7.6,210.64,210.59,7.85]
[1756905996955,7.6,210.64,210.57,2.20372684]
[1756905997149,7.6,210.64,210.56,10.05372684]
[1756905997348,2.20372684,210.63,210.56,10.05372684]
[1756905998551,7.6,210.62,210.56,7.85]
[1756906005260,2.20372684,210.61,210.56,7.85]
[1756906005568,7.2,210.6,210.56,7.85]
[1756906005755,5.32772225,210.65,210.52,105.82827111]
[1756906005957,9.40372684,210.68,210.61,7.31]
[1756906006159,9.40372684,210.68,210.61,9.51372684]
[1756906008563,9.40372684,210.68,210.62,7.31]
[1756906008755,7.53144909,210.7,210.64,7.31]
[1756906009565,2.20372684,210.68,210.64,7.31]
[1756906009766,7.2,210.67,210.64,7.31]
[1756906013166,2.20372684,210.66,210.61,7.31]
[1756906013365,7.2,210.65,210.61,7.31]
[1756906013566,7.2,210.65,210.6,7.31]
[1756906013865,7.2,210.65,210.59,2.20372684]
[1756906014063,7.2,210.65,210.59,9.51372684]
[1756906014269,2.20372684,210.64,210.59,7.31]
[1756906014667,7.2,210.63,210.59,7.31]
[1756906014967,2.20372684,210.64,210.59,7.31]
[1756906015273,7.2,210.63,210.57,2.20372684]
[1756906015461,7.2,210.63,210.56,7.31]
[1756906015768,2.20372684,210.62,210.56,7.31]
[1756906016472,7.2,210.63,210.56,7.31]
[1756906022670,2.20372684,210.62,210.56,7.31]
[1756906023973,7.2,210.63,210.56,7.31]
[1756906024873,12.52772225,210.66,210.58,7.31]
[1756906025074,2.20372684,210.65,210.58,7.31]
[1756906025573,7.2,210.66,210.58,7.31]
[1756906026970,12.52772225,210.66,210.58,7.31]
[1756906030373,15.97092411,210.66,210.58,7.31]
[1756906030774,7.2,210.66,210.58,7.31]
[1756906030973,3.44320186,210.69,210.58,7.31]
[1756906030974,15.97092411,210.69,210.58,7.31]
[1756906031971,5.32772225,210.68,210.58,7.31]
[1756906032374,7.79,210.67,210.58,7.31]
[1756906032679,13.11772225,210.67,210.58,7.31]
[1756906033172,13.11772225,210.67,210.56,7.87]
[1756906033374,13.11772225,210.67,210.52,105.82827111]
[1756906033375,13.11772225,210.65,210.52,113.69827111]
[1756906033575,8.77092411,210.63,210.52,7.87]
[1756906033779,13.11772225,210.62,210.52,7.87]
[1756906034279,7.79,210.6,210.52,7.87]
[1756906034473,3.64616455,210.59,210.52,7.87]
[1756906034678,3.64616455,210.58,210.52,7.87]
[1756906034975,3.64616455,210.58,210.51,65.66]
[1756906034976,3.64616455,210.57,210.51,73.53]
[1756906035181,13.11772225,210.64,210.52,7.87]
[1756906035382,3.64477698,210.63,210.55,7.87]
[1756906035580,3.64477698,210.62,210.55,7.87]
[1756906035778,3.64477698,210.61,210.55,7.87]
[1756906035978,13.11772225,210.68,210.55,7.87]
[1756906036280,5.32772225,210.67,210.55,7.87]
[1756906037275,7.79,210.66,210.55,7.87]
[1756906040672,7.79,210.66,210.57,3.44320186]
[1756906040881,7.79,210.66,210.58,7.87]
[1756906050484,5.32772225,210.68,210.58,11.31320186]
[1756906050788,7.79,210.69,210.59,7.87]
[1756906051589,5.32772225,210.71,210.62,7.87]
[1756906051788,5.32772225,210.72,210.62,7.87]
[1756906053194,13.11772225,210.73,210.62,7.87]
[1756906053493,7.79,210.71,210.62,7.87]
[1756906053696,13.11772225,210.71,210.62,7.87]
[1756906054096,7.79,210.71,210.62,7.87]
[1756906057094,3.44320186,210.69,210.58,7.87]
[1756906057292,11.45142018,210.68,210.58,7.87]
[1756906057602,7.79,210.66,210.58,7.87]
[1756906057797,3.66142018,210.65,210.58,7.87]
[1756906057997,3.66142018,210.64,210.58,7.87]
[1756906058303,7.79,210.62,210.56,7.87]
[1756906058505,3.66142018,210.61,210.54,7.87]
[1756906059402,7.79,210.62,210.54,7.87]
[1756906059599,11.23320186,210.66,210.54,7.87]
[1756906060404,16.56092411,210.66,210.54,7.87]
[1756906060598,7.79,210.62,210.54,7.87]
[1756906061100,13.11772225,210.66,210.54,7.87]
[1756906062196,7.79,210.66,210.56,3.44320186]
[1756906062508,7.79,210.66,210.57,7.81]
[1756906065200,7.79,210.66,210.55,118.38]
[1756906065201,5.32772225,210.68,210.6,3.44320186]
[1756906065404,16.22092411,210.71,210.61,7.81]
[1756906068306,5.32772225,210.7,210.61,7.81]
[1756906068505,7.45,210.69,210.61,7.81]
[1756906070700,7.45,210.69,210.58,7.81]
[1756906070904,12.77772225,210.69,210.58,7.81]
[1756906071605,7.45,210.67,210.58,7.81]
[1756906074616,5.32772225,210.7,210.6,3.44320186]
[1756906074812,5.32772225,210.7,210.61,7.81]
[1756906075516,7.45,210.69,210.61,7.81]
[1756906075909,12.77772225,210.69,210.56,7.81]
[1756906076112,7.45,210.68,210.56,66.13]
[1756906076512,16.22092411,210.68,210.56,7.81]
[1756906076717,5.32772225,210.67,210.56,7.81]
[1756906077010,12.77772225,210.66,210.56,7.81]
[1756906077830,7.45,210.64,210.56,7.81]
[1756906078032,7.45,210.64,210.53,114.09464298]
[1756906079928,7.45,210.63,210.53,114.09464298]
[1756906080226,3.44320186,210.62,210.53,7.81]
[1756906080423,7.45,210.55,210.44,7.81]
[1756906080625,3.44320186,210.53,210.44,7.81]
[1756906080824,7.45,210.52,210.44,7.81]
[1756906081620,3.61053924,210.51,210.44,7.81]
[1756906081820,14.5037411,210.5,210.39,52.89]
[1756906082020,3.61053924,210.49,210.39,52.89]
[1756906082226,7.45,210.48,210.39,52.89]
[1756906082422,3.61053924,210.47,210.39,52.89]
[1756906082724,7.45,210.48,210.39,52.89]
[1756906083031,3.6060196,210.47,210.39,52.89]
[1756906083331,7.45,210.48,210.39,52.89]
[1756906083826,7.45,210.48,210.39,7.81]
[1756906084035,3.60205491,210.47,210.39,7.81]
[1756906084231,3.44320186,210.47,210.39,7.81]
[1756906084530,7.45,210.46,210.39,7.81]
[1756906085637,10.89320186,210.49,210.39,7.81]
[1756906086034,7.45,210.49,210.4,7.81]
[1756906086537,10.89320186,210.53,210.4,7.81]
[1756906086731,3.59318407,210.52,210.41,52.04]
[1756906086928,10.89320186,210.53,210.41,52.04]
[1756906086929,10.89320186,210.53,210.42,7.81]
[1756906087535,2.2071444,210.49,210.42,7.81]
[1756906088038,9.6571444,210.51,210.43,2.2071444]
[1756906088739,2.2071444,210.49,210.42,7.81]
[1756906088935,7.45,210.48,210.42,7.81]
[1756906089735,7.45,210.48,210.41,52.04]
[1756906090039,2.2071444,210.45,210.38,10.0171444]
[1756906090540,7.45,210.48,210.4,2.2071444]
[1756906090839,7.45,210.48,210.42,2.2071444]
[1756906091231,7.45,210.48,210.41,10.0171444]
[1756906091431,2.2071444,210.49,210.41,10.0171444]
[1756906091629,2.2071444,210.49,210.37,118.32]
[1756906091630,2.2071444,210.51,210.43,2.2071444]
[1756906091837,2.2071444,210.51,210.45,2.2071444]
[1756906092037,2.2071444,210.51,210.45,9.7971444]
[1756906092738,7.45,210.52,210.45,9.7971444]
[1756906093944,7.45,210.52,210.45,7.59]
[1756906095041,2.2071444,210.51,210.42,2.2071444]
[1756906096141,2.2071444,210.49,210.42,2.2071444]
[1756906097837,2.2071444,210.49,210.41,7.59]
[1756906098042,2.2071444,210.47,210.41,7.59]
[1756906098443,9.6571444,210.47,210.39,2.2071444]
[1756906098740,9.6571444,210.47,210.38,2.2071444]
[1756906098940,2.2071444,210.45,210.37,7.59]
[1756906099343,7.45,210.47,210.38,2.2071444]
[1756906099543,2.2071444,210.46,210.39,7.59]
[1756906099944,2.2071444,210.46,210.4,2.2071444]
[1756906100253,2.2071444,210.48,210.4,2.2071444]
[1756906100445,2.2071444,210.5,210.42,2.2071444]
[1756906101053,2.2071444,210.5,210.41,9.7971444]
[1756906101350,2.2071444,210.48,210.41,9.7971444]
[1756906101551,2.2071444,210.48,210.41,7.59]
[1756906101751,9.6571444,210.48,210.41,7.59]
[1756906102953,2.2071444,210.46,210.38,2.2071444]
[1756906103942,7.45,210.45,210.38,2.2071444]
[1756906104148,2.2071444,210.44,210.37,7.59]
[1756906106654,2.2071444,210.44,210.38,2.2071444]
[1756906107153,2.2071444,210.44,210.37,7.59]
[1756906108445,2.2071444,210.42,210.36,9.7971444]
[1756906109142,2.2071444,210.42,210.36,7.59]
[1756906109348,9.6571444,210.42,210.36,7.59]
[1756906109547,9.6571444,210.4,210.36,7.59]
[1756906109842,2.2071444,210.4,210.33,2.2071444]
[1756906110447,2.2071444,210.38,210.32,7.59]
[1756906114656,7.45,210.46,210.36,2.2071444]
[1756906114852,2.2071444,210.43,210.37,7.59]
[1756906117055,9.6571444,210.43,210.37,7.59]
[1756906117756,9.6571444,210.43,210.34,2.2071444]
[1756906117757,9.6571444,210.43,210.35,7.59]
[1756906117957,2.2071444,210.45,210.37,7.59]
[1756906118159,3.60532767,210.44,210.37,7.59]
[1756906118357,7.45,210.47,210.38,2.2071444]
[1756906118557,2.2071444,210.45,210.38,2.2071444]
[1756906118761,3.60696512,210.44,210.38,2.2071444]
[1756906118959,2.2071444,210.45,210.38,2.2071444]
[1756906119161,3.60696512,210.44,210.38,2.2071444]
[1756906119359,3.60696512,210.43,210.39,7.59]
[1756906119555,2.2071444,210.45,210.39,7.59]
[1756906119762,3.60922703,210.44,210.38,7.59]
[1756906119957,2.2071444,210.45,210.38,7.59]
[1756906120159,3.60898262,210.44,210.38,7.59]
[1756906120359,3.60898262,210.43,210.37,9.7971444]
[1756906120560,2.2071444,210.45,210.37,9.7971444]
[1756906120759,3.61229294,210.44,210.37,9.7971444]
[1756906120959,5.81943734,210.43,210.37,9.7971444]
[1756906121161,3.6123413,210.42,210.37,9.7971444]
[1756906121356,2.2071444,210.43,210.37,9.7971444]
[1756906121563,3.61535582,210.42,210.37,2.2071444]
[1756906121765,2.2071444,210.43,210.37,9.8471444]
[1756906121962,3.61535582,210.42,210.38,7.64]
[1756906122259,3.61793209,210.41,210.37,2.2071444]
[1756906122560,9.9571444,210.49,210.4,7.64]
[1756906122760,9.9571444,210.49,210.43,7.64]
[1756906123963,7.75,210.46,210.4,2.2071444]
[1756906124860,2.2071444,210.45,210.39,7.64]
[1756906126461,2.2071444,210.43,210.39,7.64]
[1756906127263,9.9571444,210.43,210.39,7.64]
[1756906127764,2.2071444,210.43,210.35,9.8471444]
[1756906129466,2.2071444,210.41,210.35,7.64]
[1756906130465,9.9571444,210.41,210.35,7.64]
[1756906130868,5.32772225,210.46,209.19,91.62459296]
[1756906130869,22.02,210.35,210.22,5.27254103]
[1756906131167,9.9571444,210.25,210.04,71.91224103]
[1756906131368,2.2071444,210.18,210.05,12.2237]
[1756906131568,2.19263602,210.17,210.12,2.2071444]
[1756906131867,7.75,210.25,210.15,2.2071444]
[1756906131868,2.19263602,210.16,210.15,2.2071444]
[1756906132758,2.2071444,210.24,210.15,2.2071444]
[1756906132759,5.32772225,210.3,210.16,7.64]
[1756906133069,9.7228603,210.29,210.21,7.64]
[1756906133267,7.5157159,210.28,210.21,7.64]
[1756906133467,3.87249062,210.27,210.21,7.64]
[1756906133769,9.9571444,210.3,210.21,7.64]
[1756906134866,2.2071444,210.3,210.22,2.2071444]
[1756906135061,7.75,210.34,210.24,2.2071444]
[1756906135261,2.2071444,210.33,210.24,2.2071444]
[1756906135666,2.2071444,210.33,210.25,2.2071444]
[1756906136064,2.2071444,210.33,210.23,51.72]
[1756906136267,2.2071444,210.33,210.25,2.2071444]
[1756906136469,2.2071444,210.33,210.26,7.64]
[1756906136860,7.75,210.34,210.26,7.64]
[1756906137067,2.2071444,210.37,210.29,2.2071444]
[1756906137664,2.2071444,210.37,210.28,94.14]
[1756906137864,2.2071444,210.37,210.28,9.8471444]
[1756906138070,2.2071444,210.35,210.28,9.8471444]
[1756906138269,7.75,210.39,210.28,9.8471444]
[1756906138466,2.2071444,210.35,210.28,9.8471444]
[1756906139370,2.2071444,210.35,210.28,7.64]
[1756906140672,7.75,210.39,210.31,2.2071444]
[1756906140871,2.2071444,210.4,210.31,2.2071444]
[1756906141170,2.2071444,210.4,210.3,7.64]
[1756906141171,2.2071444,210.42,210.33,2.2071444]
[1756906141371,2.2071444,210.4,210.33,9.8471444]
[1756906141570,2.2071444,210.4,210.33,7.64]
[1756906143074,2.2071444,210.41,210.33,9.8471444]
[1756906143975,2.2071444,210.39,210.33,7.64]
[1756906144275,7.75,210.43,210.33,7.64]
[1756906144574,2.2071444,210.4,210.33,7.64]
[1756906144875,2.2071444,210.4,210.33,130.42]
[1756906145377,2.2071444,210.41,210.34,2.2071444]
[1756906145570,2.2071444,210.41,210.33,132.6271444]
[1756906145968,2.2071444,210.41,210.33,9.8471444]
[1756906146174,2.2071444,210.41,210.33,84.9671444]
[1756906146375,7.75,210.43,210.33,130.36]
[1756906146576,2.2071444,210.4,210.33,130.34]
[1756906147377,7.75,210.43,210.33,130.34]
[1756906147981,3.45098205,210.42,210.33,7.64]
[1756906148383,3.45098205,210.42,210.33,73.54]
[1756906148680,7.75,210.43,210.33,7.64]
[1756906148878,7.75,210.43,210.33,62.74]
[1756906149083,7.75,210.43,210.33,7.64]
[1756906149284,7.75,210.43,210.33,62.52]
[1756906149483,7.75,210.43,210.33,114.66]
[1756906149685,7.75,210.43,210.33,7.64]
[1756906149883,7.75,210.43,210.33,62.28]
[1756906150281,7.75,210.43,210.33,7.64]
[1756906150582,7.75,210.43,210.33,61.58]
[1756906151585,7.75,210.43,210.33,113.18]
[1756906151881,7.75,210.43,210.33,7.64]
[1756906152076,7.82,210.4,210.33,7.64]
[1756906152282,7.82,210.4,210.29,7.66]
[1756906152779,7.82,210.4,210.3,72.14]
[1756906152984,7.82,210.4,210.3,122.38]
[1756906153283,7.82,210.37,210.3,122.38]
[1756906153781,7.82,210.37,210.2,4.2807]
[1756906153982,3.45098205,210.32,210.21,34.74]
[1756906154188,3.45098205,210.32,210.16,320.32793077]
[1756906154189,7.82,210.31,210.19,7.66]
[1756906154382,3.45098205,210.29,210.19,7.66]
[1756906154684,11.27098205,210.29,210.19,130.08]
[1756906154887,11.27098205,210.29,210.19,7.66]
[1756906155088,7.82,210.29,210.19,7.66]
[1756906155886,7.82,210.29,210.2,122.42]
[1756906156779,7.82,210.29,210.21,7.66]
[1756906156984,3.45098205,210.33,210.21,7.66]
[1756906157985,3.45098205,210.33,210.22,122.44]
[1756906158480,3.45098205,210.33,210.23,7.66]
[1756906158879,7.82,210.34,210.23,7.66]
[1756906159084,7.82,210.34,210.24,7.66]
[1756906159786,3.45098205,210.37,210.24,7.66]
[1756906160287,3.45098205,210.34,210.24,7.66]
[1756906160493,3.45098205,210.34,210.25,64.12]
[1756906161590,7.82,210.36,210.25,64.12]
[1756906161591,7.82,210.36,210.26,7.66]
[1756906163289,3.45098205,210.35,210.26,7.66]
[1756906163590,7.82,210.36,210.26,7.66]
[1756906163791,3.45098205,210.35,210.26,7.66]
[1756906165192,7.82,210.31,210.22,7.66]
[1756906167392,3.45098205,210.29,210.22,7.66]
[1756906167891,11.27098205,210.29,210.22,7.66]
[1756906168994,7.82,210.29,210.22,7.66]
[1756906169293,3.45098205,210.3,210.22,7.66]
[1756906169489,7.82,210.32,210.22,7.66]
[1756906169690,7.82,210.32,210.22,3.45098205]
[1756906169891,3.45098205,210.33,210.23,7.66]
[1756906170594,3.45098205,210.33,210.23,96.74]
[1756906170794,3.45098205,210.33,210.23,80.38]
[1756906171096,3.45098205,210.33,210.24,7.66]
[1756906172290,3.45098205,210.34,210.24,7.66]
[1756906172593,11.27098205,210.37,210.25,7.66]
[1756906172994,11.27098205,210.37,210.25,122.0]
[1756906173294,11.27098205,210.37,210.26,7.66]
[1756906174390,7.82,210.33,210.22,60.16]
[1756906174884,3.45098205,210.31,210.22,7.66]
[1756906175089,7.82,210.3,210.22,7.66]
[1756906177198,8.55616798,210.36,210.17,7.66]
[1756906177497,7.82,210.35,210.18,51.36]
[1756906177696,22.82616798,210.36,210.18,51.36]
[1756906177997,7.82,210.35,210.19,7.66]
[1756906179396,22.82616798,210.39,210.19,97.1]
[1756906179597,7.82,210.38,210.19,97.1]
[1756906179895,7.82,210.38,210.2,7.66]
[1756906182098,7.82,210.38,210.16,319.5]
[1756906182099,7.22,210.38,210.22,7.53]
[1756906186803,7.22,210.38,210.23,7.53]
[1756906195507,3.45463595,210.33,210.23,7.53]